fUST/lending_fUST_20250530
["ID","MTS","AMOUNT","RATE_DAILY","PERIOD"]
[363105203,1748580643500,-430.0,0.00019178,2]
[363105205,1748580643510,-350.0,0.00019178,2]
[363105207,1748580643520,-430.0,0.00019178,2]
[363105209,1748580643530,-324.44320269,0.00019178,2]
[363105211,1748580643540,-430.0,0.00019178,2]
[363105213,1748580643549,-430.0,0.00019178,2]
[363105215,1748580643558,-430.0,0.00019178,2]
[363105217,1748580643568,-430.0,0.00019178,2]
[363105219,1748580643577,-430.0,0.00019178,2]
[363105221,1748580643586,-151.0,0.00019178,2]
[363105223,1748580643595,-430.0,0.00019178,2]
[363105225,1748580643604,-151.0,0.00019178,2]
[363105227,1748580643614,-430.0,0.00019178,2]
[363105229,1748580643623,-151.0,0.00019178,2]
[363105231,1748580643632,-151.0,0.00019178,2]
[363105233,1748580643642,-300.0,0.00019178,2]
[363105235,1748580643651,-456.91233808,0.00019178,2]
[363105237,1748580643660,-430.0,0.00019178,2]
[363105239,1748580643670,-430.0,0.00019178,2]
[363105241,1748580643679,-430.0,0.00019178,2]
[363105243,1748580643688,-430.0,0.00019178,2]
[363105245,1748580643697,-430.0,0.00019178,2]
[363105247,1748580643706,-430.0,0.00019178,2]
[363105249,1748580643716,-430.0,0.00019178,2]
[363105251,1748580643725,-1196.630327,0.00019178,2]
[363105253,1748580643734,-430.0,0.00019178,2]
[363105255,1748580643743,-1196.630327,0.00019178,2]
[363105257,1748580643752,-442.38670019,0.00019178,2]
[363105259,1748580643761,-430.0,0.00019178,2]
[363105261,1748580643770,-1196.630327,0.00019178,2]
[363105263,1748580643779,-430.0,0.00019178,2]
[363105276,1748580643886,-1196.630327,0.00019178,2]
[363105278,1748580643895,-430.0,0.00019178,2]
[363105280,1748580643904,-430.0,0.00019178,2]
[363105282,1748580643913,-430.0,0.00019178,2]
[363105284,1748580643922,-430.0,0.00019178,2]
[363105286,1748580643931,-430.0,0.00019178,2]
[363105287,1748580643940,-500.0,0.00019178,2]
[363105289,1748580643949,-430.0,0.00019178,2]
[363105291,1748580643957,-430.0,0.00019178,2]
[363105293,1748580643966,-430.0,0.00019178,2]
[363105295,1748580643975,-430.0,0.00019178,2]
[363105297,1748580643984,-430.0,0.00019178,2]
[363105299,1748580643994,-430.0,0.00019178,2]
[363105301,1748580644003,-430.0,0.00019178,2]
[363105303,1748580644012,-371.75364203,0.00019178,2]
[363105305,1748580644023,-430.0,0.00019178,2]
[363105307,1748580644032,-1365.63,0.00019178,2]
[363105309,1748580644041,-430.0,0.00019178,2]
[363105311,1748580644050,-400.0,0.00019178,2]
[363105313,1748580644059,-430.0,0.00019178,2]
[363105315,1748580644068,-430.0,0.00019178,2]
[363105317,1748580644078,-481.35175731,0.00019178,2]
[363105319,1748580644087,-151.0,0.00019178,2]
[363105321,1748580644096,-151.0,0.00019178,2]
[363105323,1748580644105,-430.0,0.00019178,2]
[363105325,1748580644114,-155.681729,0.00019178,2]
[363105327,1748580644124,-430.0,0.00019178,2]
[363105329,1748580644133,-430.0,0.00019178,2]
[363105331,1748580644143,-1104.13,0.00019178,2]
[363105333,1748580644153,-430.0,0.00019178,2]
[363105335,1748580644162,-2284.6,0.00019178,2]
[363105337,1748580644171,-430.0,0.00019178,2]
[363105339,1748580644181,-430.0,0.00019178,2]
[363105341,1748580644190,-151.0,0.00019178,2]
[363105343,1748580644199,-151.0,0.00019178,2]
[363105345,1748580644208,-430.0,0.00019178,2]
[363105347,1748580644217,-430.0,0.00019178,2]
[363105349,1748580644226,-558.14251133,0.00019178,2]
[363105351,1748580644236,-564.23,0.00019178,2]
[363105353,1748580644245,-561.07491596,0.00019178,2]
[363105355,1748580644254,-430.0,0.00019178,2]
[363105357,1748580644263,-430.0,0.00019178,2]
[363105359,1748580644273,-430.0,0.00019178,2]
[363105361,1748580644282,-430.0,0.00019178,2]
[363105363,1748580644291,-421.01295774,0.00019178,2]
[363105365,1748580644300,-430.0,0.00019178,2]
[363105367,1748580644309,-430.0,0.00019178,2]
[363105369,1748580644318,-430.0,0.00019178,2]
[363105371,1748580644328,-430.0,0.00019178,2]
[363105373,1748580644337,-493.21771534,0.00019178,2]
[363105375,1748580644346,-430.0,0.00019178,2]
[363105377,1748580644356,-430.0,0.00019178,2]
[363105379,1748580644366,-168.32808073,0.00019178,2]
[363105381,1748580644376,-430.0,0.00019178,2]
[363105383,1748580644385,-675.18575,0.00019178,2]
[363105385,1748580644394,-430.0,0.00019178,2]
[363105387,1748580644403,-675.18575,0.00019178,2]
[363105389,1748580644413,-430.0,0.00019178,2]
[363105391,1748580644422,-5964.89,0.00019178,2]
[363105393,1748580644431,-482.12536069,0.00019178,2]
[363105395,1748580644441,-470.0,0.00019178,2]
[363105397,1748580644451,-675.18575,0.00019178,2]
[363105398,1748580644460,-675.18575,0.00019178,2]
[363105400,1748580644470,-430.0,0.00019178,2]
[363105402,1748580644479,-430.0,0.00019178,2]
[363105404,1748580644494,-451.14368514,0.00019178,2]
[363105406,1748580644503,-430.0,0.00019178,2]
[363105408,1748580644512,-950.1,0.00019178,2]
[363105410,1748580644522,-367.74700735,0.00019178,2]
[363105412,1748580644531,-2086.85,0.00019178,2]
[363105414,1748580644541,-430.0,0.00019178,2]
[363105416,1748580644550,-430.0,0.00019178,2]
[363105418,1748580644560,-430.0,0.00019178,2]
[363105420,1748580644569,-430.0,0.00019178,2]
[363105422,1748580644579,-430.0,0.00019178,2]
[363105424,1748580644588,-430.0,0.00019178,2]
[363105426,1748580644598,-430.0,0.00019178,2]
[363105428,1748580644607,-1025.5,0.00019178,2]
[363105430,1748580644616,-430.0,0.00019178,2]
[363105432,1748580644626,-430.0,0.00019178,2]
[363105434,1748580644635,-640.27,0.00019178,2]
[363105436,1748580644644,-180.52079691,0.00019178,2]
[363105438,1748580644654,-430.0,0.00019178,2]
[363105440,1748580644663,-241.5472504,0.00019178,2]
[363105442,1748580644672,-430.0,0.00019178,2]
[363105444,1748580644680,-430.0,0.00019178,2]
[363105446,1748580644690,-430.0,0.00019178,2]
[363105448,1748580644699,-430.0,0.00019178,2]
[363105449,1748580644707,-430.0,0.00019178,2]
[363105450,1748580644716,-430.0,0.00019178,2]
[363105451,1748580644725,-420.0,0.00019178,2]
[363105452,1748580644734,-6868.07,0.00019178,2]
[363105453,1748580644743,-468.75,0.00019178,2]
[363105454,1748580644752,-430.0,0.00019178,2]
[363105455,1748580644761,-430.0,0.00019178,2]
[363105456,1748580644770,-430.0,0.00019178,2]
[363105457,1748580644779,-430.0,0.00019178,2]
[363105458,1748580644787,-1758.14,0.00019178,2]
[363105459,1748580644796,-430.0,0.00019178,2]
[363105460,1748580644805,-1016.67,0.00019178,2]
[363105461,1748580644813,-430.0,0.00019178,2]
[363105462,1748580644822,-430.0,0.00019178,2]
[363105463,1748580644831,-430.0,0.00019178,2]
[363105464,1748580644840,-430.0,0.00019178,2]
[363105465,1748580644849,-430.0,0.00019178,2]
[363105466,1748580644858,-430.0,0.00019178,2]
[363105467,1748580644867,-430.0,0.00019178,2]
[363105468,1748580644875,-467.50377,0.00019178,2]
[363105469,1748580644884,-430.0,0.00019178,2]
[363105470,1748580644893,-430.0,0.00019178,2]
[363105471,1748580644901,-4927.69,0.00019178,2]
[363105472,1748580644910,-430.0,0.00019178,2]
[363105474,1748580644919,-430.0,0.00019178,2]
[363105476,1748580644929,-175.61851743,0.00019178,2]
[363105478,1748580644938,-439.72,0.00019178,2]
[363105480,1748580644947,-430.0,0.00019178,2]
[363105482,1748580644956,-500.84098953,0.00019178,2]
[363105483,1748580644966,-430.0,0.00019178,2]
[363105485,1748580644975,-430.0,0.00019178,2]
[363105487,1748580644984,-430.0,0.00019178,2]
[363105489,1748580644993,-430.0,0.00019178,2]
[363105491,1748580645003,-430.0,0.00019178,2]
[363105493,1748580645012,-430.0,0.00019178,2]
[363105495,1748580645022,-240.99057526,0.00019178,2]
[363105497,1748580645031,-430.0,0.00019178,2]
[363105499,1748580645041,-430.0,0.00019178,2]
[363105501,1748580645051,-430.0,0.00019178,2]
[363105503,1748580645060,-430.0,0.00019178,2]
[363105505,1748580645068,-202.42062278,0.00019178,2]
[363105507,1748580645076,-677.93,0.00019178,2]
[363105509,1748580645085,-469.05,0.00019178,2]
[363105511,1748580645094,-430.0,0.00019178,2]
[363105513,1748580645102,-430.0,0.00019178,2]
[363105515,1748580645110,-430.0,0.00019178,2]
[363105517,1748580645119,-374.93055772,0.00019178,2]
[363105519,1748580645128,-430.0,0.00019178,2]
[363105521,1748580645137,-430.0,0.00019178,2]
[363105523,1748580645145,-430.0,0.00019178,2]
[363105525,1748580645154,-179.52483661,0.00019178,2]
[363105527,1748580645163,-430.0,0.00019178,2]
[363105529,1748580645171,-430.0,0.00019178,2]
[363105531,1748580645180,-430.0,0.00019178,2]
[363105533,1748580645190,-430.0,0.00019178,2]
[363105535,1748580645199,-401.21561177,0.00019178,2]
[363105537,1748580645207,-629.48,0.00019178,2]
[363105539,1748580645216,-430.0,0.00019178,2]
[363105541,1748580645225,-400.0,0.00019178,2]
[363105543,1748580645235,-430.0,0.00019178,2]
[363105545,1748580645244,-430.0,0.00019178,2]
[363105547,1748580645252,-158.26985031,0.00019178,2]
[363105549,1748580645261,-450.0,0.00019178,2]
[363105551,1748580645270,-7035.16,0.00019178,2]
[363105553,1748580645279,-430.0,0.00019178,2]
[363105555,1748580645288,-430.0,0.00019178,2]
[363105557,1748580645297,-662.17,0.00019178,2]
[363105559,1748580645306,-1503.36,0.00019178,2]
[363105560,1748580645314,-430.0,0.00019178,2]
[363105562,1748580645323,-430.0,0.00019178,2]
[363105564,1748580645332,-430.0,0.00019178,2]
[363105566,1748580645342,-375.47479354,0.00019178,2]
[363105568,1748580645352,-430.0,0.00019178,2]
[363105570,1748580645362,-430.0,0.00019178,2]
[363105572,1748580645371,-430.0,0.00019178,2]
[363105574,1748580645380,-430.0,0.00019178,2]
[363105576,1748580645390,-939.9,0.00019178,2]
[363105578,1748580645399,-430.0,0.00019178,2]
[363105580,1748580645408,-430.0,0.00019178,2]
[363105582,1748580645417,-430.0,0.00019178,2]
[363105584,1748580645434,-553.7,0.00019178,2]
[363105586,1748580645444,-430.0,0.00019178,2]
[363105588,1748580645453,-430.0,0.00019178,2]
[363105590,1748580645463,-1092.05,0.00019178,2]
[363105592,1748580645473,-430.0,0.00019178,2]
[363105594,1748580645483,-430.0,0.00019178,2]
[363105596,1748580645493,-430.0,0.00019178,2]
[363105598,1748580645502,-430.0,0.00019178,2]
[363105600,1748580645511,-151.0,0.00019178,2]
[363105602,1748580645520,-151.0,0.00019178,2]
[363105604,1748580645530,-430.0,0.00019178,2]
[363105606,1748580645539,-151.0,0.00019178,2]
[363105608,1748580645549,-430.0,0.00019178,2]
[363105610,1748580645560,-430.0,0.00019178,2]
[363105612,1748580645569,-430.0,0.00019178,2]
[363105614,1748580645578,-430.0,0.00019178,2]
[363105616,1748580645587,-3850.73,0.00019178,2]
[363105618,1748580645596,-502.0,0.00019178,2]
[363105620,1748580645605,-430.0,0.00019178,2]
[363105621,1748580645614,-400.0,0.00019178,2]
[363105623,1748580645623,-430.0,0.00019178,2]
[363105625,1748580645633,-500.0,0.00019178,2]
[363105627,1748580645643,-500.0,0.00019178,2]
[363105629,1748580645652,-503.27335492,0.00019178,2]
[363105631,1748580645661,-430.0,0.00019178,2]
[363105633,1748580645671,-430.0,0.00019178,2]
[363105635,1748580645680,-430.0,0.00019178,2]
[363105637,1748580645689,-430.0,0.00019178,2]
[363105639,1748580645698,-430.0,0.00019178,2]
[363105641,1748580645707,-430.0,0.00019178,2]
[363105643,1748580645716,-320.0,0.00019178,2]
[363105645,1748580645725,-430.0,0.00019178,2]
[363105647,1748580645735,-430.0,0.00019178,2]
[363105649,1748580645744,-430.0,0.00019178,2]
[363105651,1748580645753,-1496.16,0.00019178,2]
[363105653,1748580645763,-401.16920411,0.00019178,2]
[363105655,1748580645772,-430.0,0.00019178,2]
[363105657,1748580645781,-430.0,0.00019178,2]
[363105659,1748580645791,-151.0,0.00019178,2]
[363105661,1748580645800,-430.0,0.00019178,2]
[363105663,1748580645809,-152.491781,0.00019178,2]
[363105665,1748580645819,-167.256842,0.00019178,2]
[363105667,1748580645828,-430.0,0.00019178,2]
[363105669,1748580645838,-167.256842,0.00019178,2]
[363105671,1748580645847,-430.0,0.00019178,2]
[363105673,1748580645857,-5280.78,0.00019178,2]
[363105675,1748580645866,-167.256842,0.00019178,2]
[363105677,1748580645876,-1320.071517,0.00019178,2]
[363105679,1748580645885,-167.256842,0.00019178,2]
[363105681,1748580645894,-500.0,0.00019178,2]
[363105683,1748580645903,-1320.071517,0.00019178,2]
[363105685,1748580645914,-2207.05,0.00019178,2]
[363105687,1748580645923,-1320.071517,0.00019178,2]
[363105700,1748580646029,-1441.51,0.00019178,2]
[363105702,1748580646039,-430.0,0.00019178,2]
[363105704,1748580646049,-1320.071517,0.00019178,2]
[363105706,1748580646058,-1320.071517,0.00019178,2]
[363105708,1748580646068,-1320.071517,0.00019178,2]
[363105710,1748580646077,-430.0,0.00019178,2]
[363105712,1748580646086,-430.0,0.00019178,2]
[363105714,1748580646095,-430.0,0.00019178,2]
[363105716,1748580646104,-430.0,0.00019178,2]
[363105718,1748580646114,-151.0,0.00019178,2]
[363105720,1748580646123,-430.0,0.00019178,2]
[363105722,1748580646133,-430.0,0.00019178,2]
[363105724,1748580646142,-151.0,0.00019178,2]
[363105726,1748580646152,-151.0,0.00019178,2]
[363105728,1748580646161,-1379.59,0.00019178,2]
[363105730,1748580646171,-430.0,0.00019178,2]
[363105732,1748580646180,-430.0,0.00019178,2]
[363105734,1748580646189,-1601.18,0.00019178,2]
[363105736,1748580646198,-151.0,0.00019178,2]
[363105738,1748580646207,-578.38,0.00019178,2]
[363105740,1748580646216,-151.0,0.00019178,2]
[363105742,1748580646226,-151.0,0.00019178,2]
[363105744,1748580646235,-430.0,0.00019178,2]
[363105746,1748580646244,-259.88735629,0.00019178,2]
[363105748,1748580646254,-430.0,0.00019178,2]
[363105749,1748580646263,-430.0,0.00019178,2]
[363105751,1748580646273,-450.0,0.00019178,2]
[363105753,1748580646282,-430.0,0.00019178,2]
[363105755,1748580646291,-430.0,0.00019178,2]
[363105757,1748580646301,-430.0,0.00019178,2]
[363105759,1748580646310,-496.86,0.00019178,2]
[363105761,1748580646319,-3462.91,0.00019178,2]
[363105763,1748580646329,-464.7064096,0.00019178,2]
[363105765,1748580646338,-486.92,0.00019178,2]
[363105768,1748580646347,-1948.89,0.00019178,2]
[363105770,1748580646357,-430.0,0.00019178,2]
[363105772,1748580646366,-430.0,0.00019178,2]
[363105773,1748580646375,-459.46,0.00019178,2]
[363105775,1748580646384,-151.0,0.00019178,2]
[363105777,1748580646393,-151.911484,0.00019178,2]
[363105779,1748580646404,-430.0,0.00019178,2]
[363105781,1748580646413,-430.0,0.00019178,2]
[363105783,1748580646424,-502.19397008,0.00019178,2]
[363105785,1748580646433,-1652.91,0.00019178,2]
[363105787,1748580646442,-430.0,0.00019178,2]
[363105789,1748580646451,-430.0,0.00019178,2]
[363105791,1748580646460,-235.38494211,0.00019178,2]
[363105793,1748580646470,-430.0,0.00019178,2]
[363105795,1748580646479,-430.0,0.00019178,2]
[363105797,1748580646493,-430.0,0.00019178,2]
[363105799,1748580646502,-430.0,0.00019178,2]
[363105801,1748580646511,-430.0,0.00019178,2]
[363105803,1748580646522,-401.73959716,0.00019178,2]
[363105806,1748580646533,-546.72,0.00019178,2]
[363105808,1748580646543,-503.75,0.00019178,2]
[363105809,1748580646553,-430.0,0.00019178,2]
[363105811,1748580646563,-430.0,0.00019178,2]
[363105813,1748580646573,-1305.29,0.00019178,2]
[363105815,1748580646583,-160.06845878,0.00019178,2]
[363105817,1748580646592,-430.0,0.00019178,2]
[363105819,1748580646601,-534.30512907,0.00019178,2]
[363105821,1748580646611,-430.0,0.00019178,2]
[363105823,1748580646619,-3295.73,0.00019178,2]
[363105825,1748580646629,-430.0,0.00019178,2]
[363105827,1748580646638,-430.0,0.00019178,2]
[363105829,1748580646647,-430.0,0.00019178,2]
[363105831,1748580646655,-525.01,0.00019178,2]
[363105833,1748580646664,-430.0,0.00019178,2]
[363105835,1748580646672,-430.0,0.00019178,2]
[363105837,1748580646681,-3475.06,0.00019178,2]
[363105839,1748580646690,-430.0,0.00019178,2]
[363105841,1748580646699,-709.3,0.00019178,2]
[363105843,1748580646707,-430.0,0.00019178,2]
[363105845,1748580646717,-430.0,0.00019178,2]
[363105847,1748580646726,-430.0,0.00019178,2]
[363105849,1748580646735,-430.0,0.00019178,2]
[363105851,1748580646744,-430.0,0.00019178,2]
[363105853,1748580646753,-481.8741951,0.00019178,2]
[363105855,1748580646762,-430.0,0.00019178,2]
[363105857,1748580646773,-350.86916376,0.00019178,2]
[363105879,1748580646971,-79.13083624,0.00019178,2]
[363105881,1748580646980,-430.0,0.00019178,2]
[363105883,1748580646989,-430.0,0.00019178,2]
[363105885,1748580646998,-430.0,0.00019178,2]
[363105887,1748580647007,-430.0,0.00019178,2]
[363105889,1748580647016,-430.0,0.00019178,2]
[363105891,1748580647026,-805.93,0.00019178,2]
[363105893,1748580647035,-421.64691041,0.00019178,2]
[363105895,1748580647044,-430.0,0.00019178,2]
[363105897,1748580647053,-430.0,0.00019178,2]
[363105899,1748580647063,-430.0,0.00019178,2]
[363105901,1748580647071,-430.0,0.00019178,2]
[363105903,1748580647081,-430.0,0.00019178,2]
[363105905,1748580647091,-430.0,0.00019178,2]
[363105907,1748580647100,-430.0,0.00019178,2]
[363105909,1748580647109,-430.0,0.00019178,2]
[363105911,1748580647118,-1289.66,0.00019178,2]
[363105913,1748580647127,-430.0,0.00019178,2]
[363105915,1748580647136,-430.0,0.00019178,2]
[363105917,1748580647146,-430.0,0.00019178,2]
[363105919,1748580647155,-2906.44,0.00019178,2]
[363105921,1748580647165,-430.0,0.00019178,2]
[363105923,1748580647174,-430.0,0.00019178,2]
[363105925,1748580647184,-430.0,0.00019178,2]
[363105927,1748580647194,-430.0,0.00019178,2]
[363105928,1748580647203,-430.0,0.00019178,2]
[363105929,1748580647211,-430.0,0.00019178,2]
[363105930,1748580647220,-430.0,0.00019178,2]
[363105931,1748580647229,-430.0,0.00019178,2]
[363105932,1748580647238,-430.0,0.00019178,2]
[363105933,1748580647247,-430.0,0.00019178,2]
[363105934,1748580647256,-430.0,0.00019178,2]
[363105935,1748580647265,-430.0,0.00019178,2]
[363105936,1748580647275,-430.61015811,0.00019178,2]
[363105938,1748580647284,-430.0,0.00019178,2]
[363105940,1748580647293,-430.0,0.00019178,2]
[363105942,1748580647303,-430.0,0.00019178,2]
[363105944,1748580647311,-4887.4,0.00019178,2]
[363105946,1748580647322,-459.3214405,0.00019178,2]
[363105948,1748580647331,-430.0,0.00019178,2]
[363105950,1748580647340,-400.36988598,0.00019178,2]
[363105952,1748580647350,-430.0,0.00019178,2]
[363105954,1748580647359,-430.0,0.00019178,2]
[363105956,1748580647369,-430.0,0.00019178,2]
[363105958,1748580647378,-430.0,0.00019178,2]
[363105960,1748580647387,-430.0,0.00019178,2]
[363105962,1748580647397,-430.0,0.00019178,2]
[363105964,1748580647406,-430.0,0.00019178,2]
[363105966,1748580647415,-430.0,0.00019178,2]
[363105968,1748580647425,-550.0,0.00019178,2]
[363105970,1748580647434,-500.0,0.00019178,2]
[363105972,1748580647444,-500.0,0.00019178,2]
[363105974,1748580647453,-500.0,0.00019178,2]
[363105976,1748580647463,-508.89391304,0.00019178,2]
[363105978,1748580647472,-430.0,0.00019178,2]
[363105980,1748580647483,-500.0,0.00019178,2]
[363105982,1748580647493,-500.0,0.00019178,2]
[363105984,1748580647503,-500.0,0.00019178,2]
[363105986,1748580647512,-430.0,0.00019178,2]
[363105988,1748580647522,-407.26985585,0.00019178,2]
[363105991,1748580647548,-22.73014415,0.00019178,2]
[363105993,1748580647557,-466.28,0.00019178,2]
[363105995,1748580647569,-430.0,0.00019178,2]
[363105997,1748580647579,-211.76432107,0.00019178,2]
[363106050,1748580648769,-300.0,0.00017878,2]
[363106051,1748580648779,-121.83972121,0.00017879,2]
[363106073,1748580654880,-1.26158025,0.00017879,2]
[363106074,1748580654914,-302.28102013,0.00017879,2]
[363106075,1748580654924,-218.23567893,0.00019178,2]
[363106076,1748580654935,-430.0,0.00019178,2]
[363106077,1748580654944,-430.0,0.00019178,2]
[363106078,1748580654954,-430.0,0.00019178,2]
[363106079,1748580654963,-430.0,0.00019178,2]
[363106080,1748580654972,-99.38332073,0.00019178,2]
[363106081,1748580692165,198.14,0.00014768,2]
[363106082,1748580692616,297.21,0.00015439,2]
[363106084,1748580757501,-301.0,0.0001611,2]
[363106085,1748580763917,187.18,0.00014693,2]
[363106086,1748580764203,280.77,0.00015361,2]
[363106087,1748580765991,-212.0816168,0.00016029,2]
[363106088,1748580825994,-160.0,0.00016029,2]
[363106089,1748580836265,184.63,0.00014695,2]
[363106090,1748580836698,276.95,0.00015363,2]
[363106091,1748580878260,180.0,0.00016,2]
[363106092,1748580894872,-300.0,0.00016031,2]
[363106093,1748580895352,191.0,0.00016,3]
[363106094,1748580907669,227.2,0.00014693,2]
[363106095,1748580908077,340.8,0.0001536,2]
[363106098,1748580944256,191.0,0.00016,2]
[363106099,1748580946052,191.0,0.00016,2]
[363106100,1748580963422,-168.0,0.00016028,2]
[363106101,1748580978229,217.86,0.00014026,2]
[363106102,1748580978609,435.72,0.00014694,2]
[363106103,1748580979021,653.58,0.00015362,2]
[363106104,1748581023370,1359.99514147,0.00016,2]
[363106105,1748581023395,3640.00485853,0.00016,2]
[363106106,1748581027150,-854.0,0.0001603,2]
[363106107,1748581039106,5000.0,0.00016,2]
[363106108,1748581049865,292.71,0.00014478,2]
[363106109,1748581050257,585.41,0.00015168,2]
[363106110,1748581050658,807.58536369,0.00015857,2]
[363106111,1748581050681,70.53463631,0.00015857,2]
[363106112,1748581095154,-4769.3473587,0.00016305,2]
[363106113,1748581095176,-5000.0,0.00016313,2]
[363106114,1748581095197,-243.8157328,0.00016478,2]
[363106115,1748581095219,-1432.15734,0.00016489,2]
[363106116,1748581095241,-1170.82,0.00016547,2]
[363106117,1748581095261,-16.8595685,0.00016578,2]
[363106118,1748581098841,5000.0,0.00016,2]
[363106119,1748581120365,244.66,0.00014036,2]
[363106120,1748581120781,489.33,0.00014704,2]
[363106122,1748581121172,733.99,0.00015372,2]
[363106123,1748581125313,1246.594158,0.00013699,2]
[363106124,1748581164621,-978.65,0.00016041,2]
[363106125,1748581164643,-243.8157328,0.00016312,2]
[363106126,1748581164668,-5000.0,0.00016412,2]
[363106127,1748581164689,-258.14318534,0.00016578,2]
[363106128,1748581164710,-1223.32,0.00016709,2]
[363106129,1748581164732,-471.0120186,0.00017243,2]
[363106130,1748581164755,-1467.98,0.00017377,2]
[363106131,1748581164776,-300.0,0.00017875,2]
[363106132,1748581164796,-500.0,0.00017876,2]
[363106133,1748581164817,-500.0,0.00017876,2]
[363106134,1748581164839,-500.0,0.00017876,2]
[363106135,1748581164859,-153.25820805,0.00017876,2]
[363106136,1748581164880,-500.0,0.00017876,2]
[363106137,1748581164901,-500.0,0.00017876,2]
[363106138,1748581164923,-500.0,0.00017876,2]
[363106139,1748581164948,-500.0,0.00017876,2]
[363106140,1748581164970,-500.0,0.00017876,2]
[363106141,1748581164992,-500.0,0.00017876,2]
[363106142,1748581165014,-500.0,0.00017876,2]
[363106143,1748581165035,-500.0,0.00017876,2]
[363106144,1748581165056,-500.0,0.00017876,2]
[363106145,1748581165077,-500.0,0.00017876,2]
[363106146,1748581165099,-500.0,0.00017876,2]
[363106147,1748581165119,-371.72150007,0.00017876,2]
[363106148,1748581165139,-576.80586966,0.00017876,2]
[363106149,1748581165161,-594.19762075,0.00017876,2]
[363106150,1748581165183,-500.0,0.00017876,2]
[363106151,1748581165204,-500.0,0.00017876,2]
[363106152,1748581165226,-500.0,0.00017876,2]
[363106153,1748581165248,-500.0,0.00017876,2]
[363106154,1748581165270,-500.0,0.00017876,2]
[363106155,1748581165294,-500.0,0.00017876,2]
[363106156,1748581165316,-256.09586473,0.00017876,2]
[363106157,1748581191099,151.25,0.00014055,2]
[363106158,1748581191549,302.49,0.00014725,2]
[363106159,1748581191946,453.74,0.00015394,2]
[363106160,1748581203094,1633.12142791,0.00014051,2]
[363106161,1748581203117,10325.71022222,0.00014051,2]
[363106162,1748581203141,544.16834987,0.00014051,2]
[363106163,1748581250465,-604.99,0.00016063,2]
[363106164,1748581250487,-24900.0,0.00016504,2]
[363106165,1748581250508,-243.8157328,0.00016609,2]
[363106166,1748581250530,-300.0,0.00016708,2]
[363106167,1748581250553,-9566.1942672,0.00016709,2]
[363106168,1748581264328,247.49,0.00014356,2]
[363106169,1748581264577,371.24,0.00015008,2]
[363106170,1748581264975,494.99,0.00015661,2]
[363106171,1748581317264,-618.73,0.00016313,2]
[363106172,1748581317286,-193.27,0.00016709,2]
[363106173,1748581334486,186.31,0.00014467,2]
[363106174,1748581334891,279.47,0.00015125,2]
[363106175,1748581335488,372.62,0.00015782,2]
[363106176,1748581388415,-5000.0,0.00016276,2]
[363106177,1748581405173,185.76,0.00014571,2]
[363106178,1748581405632,278.64,0.00015233,2]